{"text_format":"3","workbook":"xlsx","n_sheets":5,"sheets":["Säljrapport","Historiska data","Prislista","Pivottabell för reavaror","Försäljningspivottabell"],"not_rendered":{"charts":2,"defined_names":6,"pivot_tables":2},"read":"whole","date_system":"1900"}

{"sheet":"Säljrapport","index":0,"n_rows":20,"n_cols":2,"rows_kept":20}
[null,"Försäljningsrappot"]
{"$rows_empty":18}
[null," Produkter"]

{"sheet":"Historiska data","index":1,"n_rows":33,"n_cols":10,"rows_kept":33}
[null,"Tidigare prislistor och försäljningshistorik"]
[]
[null,"Produktnummer","Produktnamn","Prisdatum","Styckpris per enhet","Mängdpris per enhet*","Sålda enheter (styck)","Sålda enheter (mängd)","Total försäljning (antal)","Total försäljning (kronor)"]
[null,5,{"$f":"IFERROR(IF(tblFörsäljning[[#This Row],[Produktnummer]]<>\"\",VLOOKUP(tblFörsäljning[Produktnummer],tblProdukter[[Produktnummer]:[Namn]],2,FALSE),\"\"),\"Unknown Product ID\")","v":"Kortbyxor"},"2012-01-01",20,{"v":20,"d":"20 kr"},629,{"v":1254,"d":"1,254"},{"$f":"tblFörsäljning[[#This Row],[Sålda enheter (styck)]]+tblFörsäljning[[#This Row],[Sålda enheter (mängd)]]","v":{"v":1883,"d":"1,883"}},{"$f":"tblFörsäljning[[#This Row],[Sålda enheter (styck)]]*tblFörsäljning[[#This Row],[Styckpris per enhet]]+tblFörsäljning[[#This Row],[Sålda enheter (mängd)]]*tblFörsäljning[[#This Row],[Mängdpris per enhet*]]","v":{"v":37660,"d":"37,660 kr"}}]
[null,1,{"$f":"IFERROR(IF(tblFörsäljning[[#This Row],[Produktnummer]]<>\"\",VLOOKUP(tblFörsäljning[Produktnummer],tblProdukter[[Produktnummer]:[Namn]],2,FALSE),\"\"),\"Unknown Product ID\")","v":"Skjortor"},"2012-01-01",88,{"v":54,"d":"54 kr"},734,{"v":1427,"d":"1,427"},{"$f":"tblFörsäljning[[#This Row],[Sålda enheter (styck)]]+tblFörsäljning[[#This Row],[Sålda enheter (mängd)]]","v":{"v":2161,"d":"2,161"}},{"$f":"tblFörsäljning[[#This Row],[Sålda enheter (styck)]]*tblFörsäljning[[#This Row],[Styckpris per enhet]]+tblFörsäljning[[#This Row],[Sålda enheter (mängd)]]*tblFörsäljning[[#This Row],[Mängdpris per enhet*]]","v":{"v":141650,"d":"141,650 kr"}}]
[null,2,{"$f":"IFERROR(IF(tblFörsäljning[[#This Row],[Produktnummer]]<>\"\",VLOOKUP(tblFörsäljning[Produktnummer],tblProdukter[[Produktnummer]:[Namn]],2,FALSE),\"\"),\"Unknown Product ID\")","v":"Sandaler"},"2012-01-01",70,{"v":44,"d":"44 kr"},744,{"v":1043,"d":"1,043"},{"$f":"tblFörsäljning[[#This Row],[Sålda enheter (styck)]]+tblFörsäljning[[#This Row],[Sålda enheter (mängd)]]","v":{"v":1787,"d":"1,787"}},{"$f":"tblFörsäljning[[#This Row],[Sålda enheter (styck)]]*tblFörsäljning[[#This Row],[Styckpris per enhet]]+tblFörsäljning[[#This Row],[Sålda enheter (mängd)]]*tblFörsäljning[[#This Row],[Mängdpris per enhet*]]","v":{"v":97972,"d":"97,972 kr"}}]
[null,3,{"$f":"IFERROR(IF(tblFörsäljning[[#This Row],[Produktnummer]]<>\"\",VLOOKUP(tblFörsäljning[Produktnummer],tblProdukter[[Produktnummer]:[Namn]],2,FALSE),\"\"),\"Unknown Product ID\")","v":"Paraplyer"},"2012-01-01",63,{"v":44,"d":"44 kr"},681,{"v":1523,"d":"1,523"},{"$f":"tblFörsäljning[[#This Row],[Sålda enheter (styck)]]+tblFörsäljning[[#This Row],[Sålda enheter (mängd)]]","v":{"v":2204,"d":"2,204"}},{"$f":"tblFörsäljning[[#This Row],[Sålda enheter (styck)]]*tblFörsäljning[[#This Row],[Styckpris per enhet]]+tblFörsäljning[[#This Row],[Sålda enheter (mängd)]]*tblFörsäljning[[#This Row],[Mängdpris per enhet*]]","v":{"v":109915,"d":"109,915 kr"}}]
[null,4,{"$f":"IFERROR(IF(tblFörsäljning[[#This Row],[Produktnummer]]<>\"\",VLOOKUP(tblFörsäljning[Produktnummer],tblProdukter[[Produktnummer]:[Namn]],2,FALSE),\"\"),\"Unknown Product ID\")","v":"Vattenflaskor"},"2012-01-01",35,{"v":27,"d":"27 kr"},602,{"v":1822,"d":"1,822"},{"$f":"tblFörsäljning[[#This Row],[Sålda enheter (styck)]]+tblFörsäljning[[#This Row],[Sålda enheter (mängd)]]","v":{"v":2424,"d":"2,424"}},{"$f":"tblFörsäljning[[#This Row],[Sålda enheter (styck)]]*tblFörsäljning[[#This Row],[Styckpris per enhet]]+tblFörsäljning[[#This Row],[Sålda enheter (mängd)]]*tblFörsäljning[[#This Row],[Mängdpris per enhet*]]","v":{"v":70264,"d":"70,264 kr"}}]
[null,1,{"$f":"IFERROR(IF(tblFörsäljning[[#This Row],[Produktnummer]]<>\"\",VLOOKUP(tblFörsäljning[Produktnummer],tblProdukter[[Produktnummer]:[Namn]],2,FALSE),\"\"),\"Unknown Product ID\")","v":"Skjortor"},"2012-02-01",55,{"v":44,"d":"44 kr"},678,{"v":1515,"d":"1,515"},{"$f":"tblFörsäljning[[#This Row],[Sålda enheter (styck)]]+tblFörsäljning[[#This Row],[Sålda enheter (mängd)]]","v":{"v":2193,"d":"2,193"}},{"$f":"tblFörsäljning[[#This Row],[Sålda enheter (styck)]]*tblFörsäljning[[#This Row],[Styckpris per enhet]]+tblFörsäljning[[#This Row],[Sålda enheter (mängd)]]*tblFörsäljning[[#This Row],[Mängdpris per enhet*]]","v":{"v":103950,"d":"103,950 kr"}}]
[null,2,{"$f":"IFERROR(IF(tblFörsäljning[[#This Row],[Produktnummer]]<>\"\",VLOOKUP(tblFörsäljning[Produktnummer],tblProdukter[[Produktnummer]:[Namn]],2,FALSE),\"\"),\"Unknown Product ID\")","v":"Sandaler"},"2012-02-01",83,{"v":54,"d":"54 kr"},753,{"v":1005,"d":"1,005"},{"$f":"tblFörsäljning[[#This Row],[Sålda enheter (styck)]]+tblFörsäljning[[#This Row],[Sålda enheter (mängd)]]","v":{"v":1758,"d":"1,758"}},{"$f":"tblFörsäljning[[#This Row],[Sålda enheter (styck)]]*tblFörsäljning[[#This Row],[Styckpris per enhet]]+tblFörsäljning[[#This Row],[Sålda enheter (mängd)]]*tblFörsäljning[[#This Row],[Mängdpris per enhet*]]","v":{"v":116769,"d":"116,769 kr"}}]
[null,3,{"$f":"IFERROR(IF(tblFörsäljning[[#This Row],[Produktnummer]]<>\"\",VLOOKUP(tblFörsäljning[Produktnummer],tblProdukter[[Produktnummer]:[Namn]],2,FALSE),\"\"),\"Unknown Product ID\")","v":"Paraplyer"},"2012-02-01",34,{"v":34,"d":"34 kr"},986,{"v":1069,"d":"1,069"},{"$f":"tblFörsäljning[[#This Row],[Sålda enheter (styck)]]+tblFörsäljning[[#This Row],[Sålda enheter (mängd)]]","v":{"v":2055,"d":"2,055"}},{"$f":"tblFörsäljning[[#This Row],[Sålda enheter (styck)]]*tblFörsäljning[[#This Row],[Styckpris per enhet]]+tblFörsäljning[[#This Row],[Sålda enheter (mängd)]]*tblFörsäljning[[#This Row],[Mängdpris per enhet*]]","v":{"v":69870,"d":"69,870 kr"}}]
[null,4,{"$f":"IFERROR(IF(tblFörsäljning[[#This Row],[Produktnummer]]<>\"\",VLOOKUP(tblFörsäljning[Produktnummer],tblProdukter[[Produktnummer]:[Namn]],2,FALSE),\"\"),\"Unknown Product ID\")","v":"Vattenflaskor"},"2012-02-01",35,{"v":25,"d":"25 kr"},848,{"v":1211,"d":"1,211"},{"$f":"tblFörsäljning[[#This Row],[Sålda enheter (styck)]]+tblFörsäljning[[#This Row],[Sålda enheter (mängd)]]","v":{"v":2059,"d":"2,059"}},{"$f":"tblFörsäljning[[#This Row],[Sålda enheter (styck)]]*tblFörsäljning[[#This Row],[Styckpris per enhet]]+tblFörsäljning[[#This Row],[Sålda enheter (mängd)]]*tblFörsäljning[[#This Row],[Mängdpris per enhet*]]","v":{"v":59955,"d":"59,955 kr"}}]
[null,5,{"$f":"IFERROR(IF(tblFörsäljning[[#This Row],[Produktnummer]]<>\"\",VLOOKUP(tblFörsäljning[Produktnummer],tblProdukter[[Produktnummer]:[Namn]],2,FALSE),\"\"),\"Unknown Product ID\")","v":"Kortbyxor"},"2012-02-01",41,{"v":38,"d":"38 kr"},980,{"v":1330,"d":"1,330"},{"$f":"tblFörsäljning[[#This Row],[Sålda enheter (styck)]]+tblFörsäljning[[#This Row],[Sålda enheter (mängd)]]","v":{"v":2310,"d":"2,310"}},{"$f":"tblFörsäljning[[#This Row],[Sålda enheter (styck)]]*tblFörsäljning[[#This Row],[Styckpris per enhet]]+tblFörsäljning[[#This Row],[Sålda enheter (mängd)]]*tblFörsäljning[[#This Row],[Mängdpris per enhet*]]","v":{"v":90720,"d":"90,720 kr"}}]
[null,1,{"$f":"IFERROR(IF(tblFörsäljning[[#This Row],[Produktnummer]]<>\"\",VLOOKUP(tblFörsäljning[Produktnummer],tblProdukter[[Produktnummer]:[Namn]],2,FALSE),\"\"),\"Unknown Product ID\")","v":"Skjortor"},"2012-02-29",27,{"v":18,"d":"18 kr"},533,{"v":1936,"d":"1,936"},{"$f":"tblFörsäljning[[#This Row],[Sålda enheter (styck)]]+tblFörsäljning[[#This Row],[Sålda enheter (mängd)]]","v":{"v":2469,"d":"2,469"}},{"$f":"tblFörsäljning[[#This Row],[Sålda enheter (styck)]]*tblFörsäljning[[#This Row],[Styckpris per enhet]]+tblFörsäljning[[#This Row],[Sålda enheter (mängd)]]*tblFörsäljning[[#This Row],[Mängdpris per enhet*]]","v":{"v":49239,"d":"49,239 kr"}}]
[null,2,{"$f":"IFERROR(IF(tblFörsäljning[[#This Row],[Produktnummer]]<>\"\",VLOOKUP(tblFörsäljning[Produktnummer],tblProdukter[[Produktnummer]:[Namn]],2,FALSE),\"\"),\"Unknown Product ID\")","v":"Sandaler"},"2012-02-29",38,{"v":28,"d":"28 kr"},952,{"v":1512,"d":"1,512"},{"$f":"tblFörsäljning[[#This Row],[Sålda enheter (styck)]]+tblFörsäljning[[#This Row],[Sålda enheter (mängd)]]","v":{"v":2464,"d":"2,464"}},{"$f":"tblFörsäljning[[#This Row],[Sålda enheter (styck)]]*tblFörsäljning[[#This Row],[Styckpris per enhet]]+tblFörsäljning[[#This Row],[Sålda enheter (mängd)]]*tblFörsäljning[[#This Row],[Mängdpris per enhet*]]","v":{"v":78512,"d":"78,512 kr"}}]
[null,3,{"$f":"IFERROR(IF(tblFörsäljning[[#This Row],[Produktnummer]]<>\"\",VLOOKUP(tblFörsäljning[Produktnummer],tblProdukter[[Produktnummer]:[Namn]],2,FALSE),\"\"),\"Unknown Product ID\")","v":"Paraplyer"},"2012-02-29",92,{"v":92,"d":"92 kr"},956,{"v":1266,"d":"1,266"},{"$f":"tblFörsäljning[[#This Row],[Sålda enheter (styck)]]+tblFörsäljning[[#This Row],[Sålda enheter (mängd)]]","v":{"v":2222,"d":"2,222"}},{"$f":"tblFörsäljning[[#This Row],[Sålda enheter (styck)]]*tblFörsäljning[[#This Row],[Styckpris per enhet]]+tblFörsäljning[[#This Row],[Sålda enheter (mängd)]]*tblFörsäljning[[#This Row],[Mängdpris per enhet*]]","v":{"v":204424,"d":"204,424 kr"}}]
[null,4,{"$f":"IFERROR(IF(tblFörsäljning[[#This Row],[Produktnummer]]<>\"\",VLOOKUP(tblFörsäljning[Produktnummer],tblProdukter[[Produktnummer]:[Namn]],2,FALSE),\"\"),\"Unknown Product ID\")","v":"Vattenflaskor"},"2012-02-29",43,{"v":36,"d":"36 kr"},952,{"v":1390,"d":"1,390"},{"$f":"tblFörsäljning[[#This Row],[Sålda enheter (styck)]]+tblFörsäljning[[#This Row],[Sålda enheter (mängd)]]","v":{"v":2342,"d":"2,342"}},{"$f":"tblFörsäljning[[#This Row],[Sålda enheter (styck)]]*tblFörsäljning[[#This Row],[Styckpris per enhet]]+tblFörsäljning[[#This Row],[Sålda enheter (mängd)]]*tblFörsäljning[[#This Row],[Mängdpris per enhet*]]","v":{"v":90976,"d":"90,976 kr"}}]
[null,5,{"$f":"IFERROR(IF(tblFörsäljning[[#This Row],[Produktnummer]]<>\"\",VLOOKUP(tblFörsäljning[Produktnummer],tblProdukter[[Produktnummer]:[Namn]],2,FALSE),\"\"),\"Unknown Product ID\")","v":"Kortbyxor"},"2012-02-29",98,{"v":73,"d":"73 kr"},530,{"v":1452,"d":"1,452"},{"$f":"tblFörsäljning[[#This Row],[Sålda enheter (styck)]]+tblFörsäljning[[#This Row],[Sålda enheter (mängd)]]","v":{"v":1982,"d":"1,982"}},{"$f":"tblFörsäljning[[#This Row],[Sålda enheter (styck)]]*tblFörsäljning[[#This Row],[Styckpris per enhet]]+tblFörsäljning[[#This Row],[Sålda enheter (mängd)]]*tblFörsäljning[[#This Row],[Mängdpris per enhet*]]","v":{"v":157936,"d":"157,936 kr"}}]
[null,1,{"$f":"IFERROR(IF(tblFörsäljning[[#This Row],[Produktnummer]]<>\"\",VLOOKUP(tblFörsäljning[Produktnummer],tblProdukter[[Produktnummer]:[Namn]],2,FALSE),\"\"),\"Unknown Product ID\")","v":"Skjortor"},"2012-03-31",38,{"v":28,"d":"28 kr"},973,{"v":1415,"d":"1,415"},{"$f":"tblFörsäljning[[#This Row],[Sålda enheter (styck)]]+tblFörsäljning[[#This Row],[Sålda enheter (mängd)]]","v":{"v":2388,"d":"2,388"}},{"$f":"tblFörsäljning[[#This Row],[Sålda enheter (styck)]]*tblFörsäljning[[#This Row],[Styckpris per enhet]]+tblFörsäljning[[#This Row],[Sålda enheter (mängd)]]*tblFörsäljning[[#This Row],[Mängdpris per enhet*]]","v":{"v":76594,"d":"76,594 kr"}}]
[null,2,{"$f":"IFERROR(IF(tblFörsäljning[[#This Row],[Produktnummer]]<>\"\",VLOOKUP(tblFörsäljning[Produktnummer],tblProdukter[[Produktnummer]:[Namn]],2,FALSE),\"\"),\"Unknown Product ID\")","v":"Sandaler"},"2012-03-31",50,{"v":36,"d":"36 kr"},672,{"v":1105,"d":"1,105"},{"$f":"tblFörsäljning[[#This Row],[Sålda enheter (styck)]]+tblFörsäljning[[#This Row],[Sålda enheter (mängd)]]","v":{"v":1777,"d":"1,777"}},{"$f":"tblFörsäljning[[#This Row],[Sålda enheter (styck)]]*tblFörsäljning[[#This Row],[Styckpris per enhet]]+tblFörsäljning[[#This Row],[Sålda enheter (mängd)]]*tblFörsäljning[[#This Row],[Mängdpris per enhet*]]","v":{"v":73380,"d":"73,380 kr"}}]
[null,3,{"$f":"IFERROR(IF(tblFörsäljning[[#This Row],[Produktnummer]]<>\"\",VLOOKUP(tblFörsäljning[Produktnummer],tblProdukter[[Produktnummer]:[Namn]],2,FALSE),\"\"),\"Unknown Product ID\")","v":"Paraplyer"},"2012-03-31",24,{"v":23,"d":"23 kr"},769,{"v":1629,"d":"1,629"},{"$f":"tblFörsäljning[[#This Row],[Sålda enheter (styck)]]+tblFörsäljning[[#This Row],[Sålda enheter (mängd)]]","v":{"v":2398,"d":"2,398"}},{"$f":"tblFörsäljning[[#This Row],[Sålda enheter (styck)]]*tblFörsäljning[[#This Row],[Styckpris per enhet]]+tblFörsäljning[[#This Row],[Sålda enheter (mängd)]]*tblFörsäljning[[#This Row],[Mängdpris per enhet*]]","v":{"v":55923,"d":"55,923 kr"}}]
[null,4,{"$f":"IFERROR(IF(tblFörsäljning[[#This Row],[Produktnummer]]<>\"\",VLOOKUP(tblFörsäljning[Produktnummer],tblProdukter[[Produktnummer]:[Namn]],2,FALSE),\"\"),\"Unknown Product ID\")","v":"Vattenflaskor"},"2012-03-31",72,{"v":57,"d":"57 kr"},985,{"v":1848,"d":"1,848"},{"$f":"tblFörsäljning[[#This Row],[Sålda enheter (styck)]]+tblFörsäljning[[#This Row],[Sålda enheter (mängd)]]","v":{"v":2833,"d":"2,833"}},{"$f":"tblFörsäljning[[#This Row],[Sålda enheter (styck)]]*tblFörsäljning[[#This Row],[Styckpris per enhet]]+tblFörsäljning[[#This Row],[Sålda enheter (mängd)]]*tblFörsäljning[[#This Row],[Mängdpris per enhet*]]","v":{"v":176256,"d":"176,256 kr"}}]
[null,5,{"$f":"IFERROR(IF(tblFörsäljning[[#This Row],[Produktnummer]]<>\"\",VLOOKUP(tblFörsäljning[Produktnummer],tblProdukter[[Produktnummer]:[Namn]],2,FALSE),\"\"),\"Unknown Product ID\")","v":"Kortbyxor"},"2012-03-31",85,{"v":43,"d":"43 kr"},721,{"v":1426,"d":"1,426"},{"$f":"tblFörsäljning[[#This Row],[Sålda enheter (styck)]]+tblFörsäljning[[#This Row],[Sålda enheter (mängd)]]","v":{"v":2147,"d":"2,147"}},{"$f":"tblFörsäljning[[#This Row],[Sålda enheter (styck)]]*tblFörsäljning[[#This Row],[Styckpris per enhet]]+tblFörsäljning[[#This Row],[Sålda enheter (mängd)]]*tblFörsäljning[[#This Row],[Mängdpris per enhet*]]","v":{"v":122603,"d":"122,603 kr"}}]
[null,1,{"$f":"IFERROR(IF(tblFörsäljning[[#This Row],[Produktnummer]]<>\"\",VLOOKUP(tblFörsäljning[Produktnummer],tblProdukter[[Produktnummer]:[Namn]],2,FALSE),\"\"),\"Unknown Product ID\")","v":"Skjortor"},"2012-04-30",91,{"v":65,"d":"65 kr"},603,{"v":1226,"d":"1,226"},{"$f":"tblFörsäljning[[#This Row],[Sålda enheter (styck)]]+tblFörsäljning[[#This Row],[Sålda enheter (mängd)]]","v":{"v":1829,"d":"1,829"}},{"$f":"tblFörsäljning[[#This Row],[Sålda enheter (styck)]]*tblFörsäljning[[#This Row],[Styckpris per enhet]]+tblFörsäljning[[#This Row],[Sålda enheter (mängd)]]*tblFörsäljning[[#This Row],[Mängdpris per enhet*]]","v":{"v":134563,"d":"134,563 kr"}}]
[null,2,{"$f":"IFERROR(IF(tblFörsäljning[[#This Row],[Produktnummer]]<>\"\",VLOOKUP(tblFörsäljning[Produktnummer],tblProdukter[[Produktnummer]:[Namn]],2,FALSE),\"\"),\"Unknown Product ID\")","v":"Sandaler"},"2012-04-30",91,{"v":55,"d":"55 kr"},892,{"v":1823,"d":"1,823"},{"$f":"tblFörsäljning[[#This Row],[Sålda enheter (styck)]]+tblFörsäljning[[#This Row],[Sålda enheter (mängd)]]","v":{"v":2715,"d":"2,715"}},{"$f":"tblFörsäljning[[#This Row],[Sålda enheter (styck)]]*tblFörsäljning[[#This Row],[Styckpris per enhet]]+tblFörsäljning[[#This Row],[Sålda enheter (mängd)]]*tblFörsäljning[[#This Row],[Mängdpris per enhet*]]","v":{"v":181437,"d":"181,437 kr"}}]
[null,3,{"$f":"IFERROR(IF(tblFörsäljning[[#This Row],[Produktnummer]]<>\"\",VLOOKUP(tblFörsäljning[Produktnummer],tblProdukter[[Produktnummer]:[Namn]],2,FALSE),\"\"),\"Unknown Product ID\")","v":"Paraplyer"},"2012-04-30",42,{"v":42,"d":"42 kr"},611,{"v":1181,"d":"1,181"},{"$f":"tblFörsäljning[[#This Row],[Sålda enheter (styck)]]+tblFörsäljning[[#This Row],[Sålda enheter (mängd)]]","v":{"v":1792,"d":"1,792"}},{"$f":"tblFörsäljning[[#This Row],[Sålda enheter (styck)]]*tblFörsäljning[[#This Row],[Styckpris per enhet]]+tblFörsäljning[[#This Row],[Sålda enheter (mängd)]]*tblFörsäljning[[#This Row],[Mängdpris per enhet*]]","v":{"v":75264,"d":"75,264 kr"}}]
[null,4,{"$f":"IFERROR(IF(tblFörsäljning[[#This Row],[Produktnummer]]<>\"\",VLOOKUP(tblFörsäljning[Produktnummer],tblProdukter[[Produktnummer]:[Namn]],2,FALSE),\"\"),\"Unknown Product ID\")","v":"Vattenflaskor"},"2012-04-30",85,{"v":43,"d":"43 kr"},530,{"v":1039,"d":"1,039"},{"$f":"tblFörsäljning[[#This Row],[Sålda enheter (styck)]]+tblFörsäljning[[#This Row],[Sålda enheter (mängd)]]","v":{"v":1569,"d":"1,569"}},{"$f":"tblFörsäljning[[#This Row],[Sålda enheter (styck)]]*tblFörsäljning[[#This Row],[Styckpris per enhet]]+tblFörsäljning[[#This Row],[Sålda enheter (mängd)]]*tblFörsäljning[[#This Row],[Mängdpris per enhet*]]","v":{"v":89727,"d":"89,727 kr"}}]
[null,5,{"$f":"IFERROR(IF(tblFörsäljning[[#This Row],[Produktnummer]]<>\"\",VLOOKUP(tblFörsäljning[Produktnummer],tblProdukter[[Produktnummer]:[Namn]],2,FALSE),\"\"),\"Unknown Product ID\")","v":"Kortbyxor"},"2012-04-30",82,{"v":71,"d":"71 kr"},716,{"v":1249,"d":"1,249"},{"$f":"tblFörsäljning[[#This Row],[Sålda enheter (styck)]]+tblFörsäljning[[#This Row],[Sålda enheter (mängd)]]","v":{"v":1965,"d":"1,965"}},{"$f":"tblFörsäljning[[#This Row],[Sålda enheter (styck)]]*tblFörsäljning[[#This Row],[Styckpris per enhet]]+tblFörsäljning[[#This Row],[Sålda enheter (mängd)]]*tblFörsäljning[[#This Row],[Mängdpris per enhet*]]","v":{"v":147391,"d":"147,391 kr"}}]
[null,1,{"$f":"IFERROR(IF(tblFörsäljning[[#This Row],[Produktnummer]]<>\"\",VLOOKUP(tblFörsäljning[Produktnummer],tblProdukter[[Produktnummer]:[Namn]],2,FALSE),\"\"),\"Unknown Product ID\")","v":"Skjortor"},"2012-05-14",34,{"v":31,"d":"31 kr"},850,{"v":1548,"d":"1,548"},{"$f":"tblFörsäljning[[#This Row],[Sålda enheter (styck)]]+tblFörsäljning[[#This Row],[Sålda enheter (mängd)]]","v":{"v":2398,"d":"2,398"}},{"$f":"tblFörsäljning[[#This Row],[Sålda enheter (styck)]]*tblFörsäljning[[#This Row],[Styckpris per enhet]]+tblFörsäljning[[#This Row],[Sålda enheter (mängd)]]*tblFörsäljning[[#This Row],[Mängdpris per enhet*]]","v":{"v":76888,"d":"76,888 kr"}}]
[null,2,{"$f":"IFERROR(IF(tblFörsäljning[[#This Row],[Produktnummer]]<>\"\",VLOOKUP(tblFörsäljning[Produktnummer],tblProdukter[[Produktnummer]:[Namn]],2,FALSE),\"\"),\"Unknown Product ID\")","v":"Sandaler"},"2012-05-14",64,{"v":40,"d":"40 kr"},876,{"v":1663,"d":"1,663"},{"$f":"tblFörsäljning[[#This Row],[Sålda enheter (styck)]]+tblFörsäljning[[#This Row],[Sålda enheter (mängd)]]","v":{"v":2539,"d":"2,539"}},{"$f":"tblFörsäljning[[#This Row],[Sålda enheter (styck)]]*tblFörsäljning[[#This Row],[Styckpris per enhet]]+tblFörsäljning[[#This Row],[Sålda enheter (mängd)]]*tblFörsäljning[[#This Row],[Mängdpris per enhet*]]","v":{"v":122584,"d":"122,584 kr"}}]
[null,3,{"$f":"IFERROR(IF(tblFörsäljning[[#This Row],[Produktnummer]]<>\"\",VLOOKUP(tblFörsäljning[Produktnummer],tblProdukter[[Produktnummer]:[Namn]],2,FALSE),\"\"),\"Unknown Product ID\")","v":"Paraplyer"},"2012-05-14",33,{"v":30,"d":"30 kr"},881,{"v":1149,"d":"1,149"},{"$f":"tblFörsäljning[[#This Row],[Sålda enheter (styck)]]+tblFörsäljning[[#This Row],[Sålda enheter (mängd)]]","v":{"v":2030,"d":"2,030"}},{"$f":"tblFörsäljning[[#This Row],[Sålda enheter (styck)]]*tblFörsäljning[[#This Row],[Styckpris per enhet]]+tblFörsäljning[[#This Row],[Sålda enheter (mängd)]]*tblFörsäljning[[#This Row],[Mängdpris per enhet*]]","v":{"v":63543,"d":"63,543 kr"}}]
[null,4,{"$f":"IFERROR(IF(tblFörsäljning[[#This Row],[Produktnummer]]<>\"\",VLOOKUP(tblFörsäljning[Produktnummer],tblProdukter[[Produktnummer]:[Namn]],2,FALSE),\"\"),\"Unknown Product ID\")","v":"Vattenflaskor"},"2012-05-14",29,{"v":27,"d":"27 kr"},802,{"v":1548,"d":"1,548"},{"$f":"tblFörsäljning[[#This Row],[Sålda enheter (styck)]]+tblFörsäljning[[#This Row],[Sålda enheter (mängd)]]","v":{"v":2350,"d":"2,350"}},{"$f":"tblFörsäljning[[#This Row],[Sålda enheter (styck)]]*tblFörsäljning[[#This Row],[Styckpris per enhet]]+tblFörsäljning[[#This Row],[Sålda enheter (mängd)]]*tblFörsäljning[[#This Row],[Mängdpris per enhet*]]","v":{"v":65054,"d":"65,054 kr"}}]
[null,5,{"$f":"IFERROR(IF(tblFörsäljning[[#This Row],[Produktnummer]]<>\"\",VLOOKUP(tblFörsäljning[Produktnummer],tblProdukter[[Produktnummer]:[Namn]],2,FALSE),\"\"),\"Unknown Product ID\")","v":"Kortbyxor"},"2013-12-11",24,{"v":15,"d":"15 kr"},824,{"v":1994,"d":"1,994"},{"$f":"tblFörsäljning[[#This Row],[Sålda enheter (styck)]]+tblFörsäljning[[#This Row],[Sålda enheter (mängd)]]","v":{"v":2818,"d":"2,818"}},{"$f":"tblFörsäljning[[#This Row],[Sålda enheter (styck)]]*tblFörsäljning[[#This Row],[Styckpris per enhet]]+tblFörsäljning[[#This Row],[Sålda enheter (mängd)]]*tblFörsäljning[[#This Row],[Mängdpris per enhet*]]","v":{"v":49686,"d":"49,686 kr"}}]

{"sheet":"Prislista","index":2,"n_rows":18,"n_cols":6,"rows_kept":18,"merged":[[15,1,15,5]]}
[null,"Produktprislista"]
[]
[null,"Adventure Works"]
[null,"23456 Maple Street"]
[null,"Springfield, CA 77503"]
[null,"Telefon: (425) 555-0150"]
[null,"FAX: (425) 555-0152"]
[null,"www.adventure-works.com",{"$nulls":3},"Senaste uppdatering 2013-08-15"]
[]
[null,"Produktnummer","Namn","Beskrivning","Styckpris per enhet","Mängdpris per enhet*"]
[null,1,"Skjortor","Håll dig sval hela sommaren med våra förtvättade skjortor i 100 % bomull.",{"v":22,"d":"22 kr"},{"v":15,"d":"15.00 kr"}]
[null,2,"Sandaler","Med våra robusta sandaler med gummisula kan du promenera på brännhet sand utan problem.",{"v":10,"d":"10 kr"},{"v":6,"d":"6.00 kr"}]
[null,3,"Paraplyer","Skydda dig från solen under våra stora parasoll som blockerar 96 % av solens skadliga UV-strålning.",{"v":30,"d":"30 kr"},{"v":20,"d":"20.00 kr"}]
[null,4,"Vattenflaskor","Håll vätskenivån i schack med vatten från våra värmeisolerade vattenflaskor.",{"v":7,"d":"7 kr"},{"v":5,"d":"5.00 kr"}]
[null,5,"Kortbyxor","Gå direkt från havet in i bilen med våra extremt snabbtorkande badbyxor i nylon.",{"v":15,"d":"15 kr"},{"v":8,"d":"8.00 kr"}]
[]
[{"$nulls":5},"Ring oss för produkter som inte finns med på listan."]
[{"$nulls":5},"*Mängdpris gäller vid beställning av 12 stycken eller fler."]

{"sheet":"Pivottabell för reavaror","index":3,"n_rows":10,"n_cols":4,"rows_kept":10,"hidden":true,"merged":[[1,1,1,3]]}
[null,"Pivottabell punktpris"]
[null,"Det här bladet ska vara dolt. Alla ändringar av pivottabellen nedan kan göra att felaktiga data visas i försäljningsrapporten. "]
[null,"Markerad produkt:",{"$f":"IF(LEN(B5),B5,\"Inga\")","v":"Sandaler"}]
[null,"Produktnamn","Styckpris per enhet","Summa kogusummast Total försäljning (antal)"]
[null,"Sandaler",{"v":38,"d":"38 kr"},2464]
[null,null,{"v":50,"d":"50 kr"},1777]
[null,null,{"v":64,"d":"64 kr"},2539]
[null,null,{"v":70,"d":"70 kr"},1787]
[null,null,{"v":83,"d":"83 kr"},1758]
[null,null,{"v":91,"d":"91 kr"},2715]

{"sheet":"Försäljningspivottabell","index":4,"n_rows":9,"n_cols":3,"rows_kept":9,"hidden":true,"merged":[[1,1,1,3]]}
[null,"Pivottabell säljtrend"]
[null,"Det här bladet ska vara dolt. Alla ändringar av pivottabellen nedan kan göra att felaktiga data visas i försäljningsrapporten. "]
[null,"Summa kogusummast Total försäljning (antal)","Produktnamn"]
[null,"Prisdatum","Sandaler"]
[null,"jan",1787]
[null,"feb",4222]
[null,"mar",1777]
[null,"apr",2715]
[null,"maj",2539]